fUST/lending_fUST_20250512
["ID","MTS","AMOUNT","RATE_DAILY","PERIOD"]
[360783685,1747017049078,-400.0,0.00019178,2]
[360783686,1747017049087,-840.014361,0.00019178,2]
[360783687,1747017049097,-400.0,0.00019178,2]
[360783688,1747017049107,-400.0,0.00019178,2]
[360783689,1747017049117,-400.0,0.00019178,2]
[360783690,1747017049127,-400.0,0.00019178,2]
[360783691,1747017049136,-400.0,0.00019178,2]
[360783692,1747017049145,-400.0,0.00019178,2]
[360783693,1747017049158,-400.0,0.00019178,2]
[360783694,1747017049167,-400.0,0.00019178,2]
[360783695,1747017049177,-400.0,0.00019178,2]
[360783696,1747017049187,-400.0,0.00019178,2]
[360783697,1747017049197,-151.0,0.00019178,2]
[360783698,1747017049207,-400.0,0.00019178,2]
[360783699,1747017049216,-400.0,0.00019178,2]
[360783700,1747017049226,-400.0,0.00019178,2]
[360783701,1747017049236,-151.0,0.00019178,2]
[360783702,1747017049245,-400.0,0.00019178,2]
[360783703,1747017049255,-400.0,0.00019178,2]
[360783704,1747017049265,-400.0,0.00019178,2]
[360783705,1747017049275,-400.0,0.00019178,2]
[360783706,1747017049284,-400.0,0.00019178,2]
[360783707,1747017049294,-400.0,0.00019178,2]
[360783708,1747017049304,-400.0,0.00019178,2]
[360783709,1747017049313,-400.0,0.00019178,2]
[360783710,1747017049324,-400.0,0.00019178,2]
[360783711,1747017049334,-400.0,0.00019178,2]
[360783712,1747017049344,-400.0,0.00019178,2]
[360783713,1747017049353,-400.0,0.00019178,2]
[360783714,1747017049362,-400.0,0.00019178,2]
[360783715,1747017049372,-400.0,0.00019178,2]
[360783716,1747017049382,-400.0,0.00019178,2]
[360783717,1747017049392,-400.0,0.00019178,2]
[360783718,1747017049401,-400.0,0.00019178,2]
[360783719,1747017049411,-400.0,0.00019178,2]
[360783720,1747017049420,-495.41,0.00019178,2]
[360783721,1747017049429,-400.0,0.00019178,2]
[360783722,1747017049439,-400.0,0.00019178,2]
[360783723,1747017049449,-400.0,0.00019178,2]
[360783724,1747017049458,-400.0,0.00019178,2]
[360783725,1747017049468,-400.0,0.00019178,2]
[360783726,1747017049477,-400.0,0.00019178,2]
[360783727,1747017049488,-400.0,0.00019178,2]
[360783728,1747017049497,-400.0,0.00019178,2]
[360783729,1747017049507,-400.0,0.00019178,2]
[360783730,1747017049517,-400.0,0.00019178,2]
[360783731,1747017049526,-400.0,0.00019178,2]
[360783732,1747017049535,-400.0,0.00019178,2]
[360783733,1747017049556,-400.0,0.00019178,2]
[360783734,1747017049566,-400.0,0.00019178,2]
[360783735,1747017049576,-400.0,0.00019178,2]
[360783736,1747017049587,-400.0,0.00019178,2]
[360783737,1747017049596,-400.0,0.00019178,2]
[360783738,1747017049607,-400.0,0.00019178,2]
[360783739,1747017049617,-400.0,0.00019178,2]
[360783740,1747017049628,-400.0,0.00019178,2]
[360783741,1747017049637,-400.0,0.00019178,2]
[360783742,1747017049647,-400.0,0.00019178,2]
[360783743,1747017049657,-400.0,0.00019178,2]
[360783744,1747017049667,-378.37092422,0.00019178,2]
[360783745,1747017049677,-400.0,0.00019178,2]
[360783746,1747017049686,-400.0,0.00019178,2]
[360783747,1747017049696,-2501.92,0.00019178,2]
[360783748,1747017049706,-400.0,0.00019178,2]
[360783749,1747017049716,-400.0,0.00019178,2]
[360783750,1747017049725,-400.0,0.00019178,2]
[360783751,1747017049735,-400.0,0.00019178,2]
[360783752,1747017049745,-400.0,0.00019178,2]
[360783753,1747017049755,-400.0,0.00019178,2]
[360783754,1747017049765,-400.0,0.00019178,2]
[360783755,1747017049775,-400.0,0.00019178,2]
[360783756,1747017049785,-400.0,0.00019178,2]
[360783757,1747017049795,-400.0,0.00019178,2]
[360783758,1747017049806,-400.0,0.00019178,2]
[360783759,1747017049816,-400.0,0.00019178,2]
[360783760,1747017049825,-1292.03,0.00019178,2]
[360783761,1747017049835,-498.68,0.00019178,2]
[360783762,1747017049845,-400.0,0.00019178,2]
[360783763,1747017049855,-400.0,0.00019178,2]
[360783764,1747017049864,-400.0,0.00019178,2]
[360783765,1747017049874,-409.00225661,0.00019178,2]
[360783766,1747017049884,-400.0,0.00019178,2]
[360783767,1747017049894,-400.0,0.00019178,2]
[360783768,1747017049903,-400.0,0.00019178,2]
[360783769,1747017049913,-500.0,0.00019178,2]
[360783770,1747017049922,-400.0,0.00019178,2]
[360783771,1747017049931,-400.0,0.00019178,2]
[360783772,1747017049941,-400.0,0.00019178,2]
[360783773,1747017049950,-400.0,0.00019178,2]
[360783774,1747017049960,-400.0,0.00019178,2]
[360783775,1747017049969,-400.0,0.00019178,2]
[360783776,1747017049979,-400.0,0.00019178,2]
[360783777,1747017049990,-400.0,0.00019178,2]
[360783778,1747017050000,-400.0,0.00019178,2]
[360783779,1747017050009,-400.0,0.00019178,2]
[360783780,1747017050020,-400.0,0.00019178,2]
[360783781,1747017050030,-400.0,0.00019178,2]
[360783782,1747017050039,-400.0,0.00019178,2]
[360783783,1747017050050,-400.0,0.00019178,2]
[360783784,1747017050059,-400.0,0.00019178,2]
[360783785,1747017050069,-400.0,0.00019178,2]
[360783786,1747017050079,-400.0,0.00019178,2]
[360783787,1747017050088,-400.0,0.00019178,2]
[360783788,1747017050098,-400.0,0.00019178,2]
[360783789,1747017050108,-906.46,0.00019178,2]
[360783790,1747017050118,-400.0,0.00019178,2]
[360783791,1747017050127,-400.0,0.00019178,2]
[360783792,1747017050136,-400.0,0.00019178,2]
[360783793,1747017050146,-400.0,0.00019178,2]
[360783794,1747017050160,-400.0,0.00019178,2]
[360783795,1747017050170,-400.0,0.00019178,2]
[360783796,1747017050179,-400.0,0.00019178,2]
[360783797,1747017050188,-400.0,0.00019178,2]
[360783798,1747017050198,-400.0,0.00019178,2]
[360783799,1747017050208,-400.0,0.00019178,2]
[360783800,1747017050217,-400.0,0.00019178,2]
[360783801,1747017050226,-400.0,0.00019178,2]
[360783802,1747017050237,-400.0,0.00019178,2]
[360783803,1747017050247,-400.0,0.00019178,2]
[360783804,1747017050256,-400.0,0.00019178,2]
[360783805,1747017050266,-400.0,0.00019178,2]
[360783806,1747017050275,-400.0,0.00019178,2]
[360783807,1747017050284,-400.0,0.00019178,2]
[360783808,1747017050294,-400.0,0.00019178,2]
[360783809,1747017050304,-581.78,0.00019178,2]
[360783810,1747017050314,-400.0,0.00019178,2]
[360783811,1747017050323,-954.45,0.00019178,2]
[360783812,1747017050334,-400.0,0.00019178,2]
[360783813,1747017050343,-400.0,0.00019178,2]
[360783814,1747017050353,-427.97887227,0.00019178,2]
[360783815,1747017050362,-400.0,0.00019178,2]
[360783816,1747017050372,-400.0,0.00019178,2]
[360783817,1747017050383,-400.0,0.00019178,2]
[360783818,1747017050392,-400.0,0.00019178,2]
[360783819,1747017050401,-831.16,0.00019178,2]
[360783820,1747017050411,-400.0,0.00019178,2]
[360783821,1747017050420,-1815.48,0.00019178,2]
[360783822,1747017050430,-400.0,0.00019178,2]
[360783823,1747017050439,-400.0,0.00019178,2]
[360783824,1747017050449,-400.0,0.00019178,2]
[360783825,1747017050458,-400.0,0.00019178,2]
[360783826,1747017050467,-400.0,0.00019178,2]
[360783827,1747017050477,-400.0,0.00019178,2]
[360783828,1747017050486,-400.0,0.00019178,2]
[360783829,1747017050496,-400.0,0.00019178,2]
[360783830,1747017050506,-400.0,0.00019178,2]
[360783831,1747017050515,-400.0,0.00019178,2]
[360783832,1747017050524,-400.0,0.00019178,2]
[360783833,1747017050534,-400.0,0.00019178,2]
[360783834,1747017050545,-400.0,0.00019178,2]
[360783835,1747017050555,-400.0,0.00019178,2]
[360783836,1747017050564,-400.0,0.00019178,2]
[360783837,1747017050574,-400.0,0.00019178,2]
[360783838,1747017050584,-400.0,0.00019178,2]
[360783839,1747017050594,-400.0,0.00019178,2]
[360783840,1747017050604,-400.0,0.00019178,2]
[360783841,1747017050613,-400.0,0.00019178,2]
[360783842,1747017050622,-158.924551,0.00019178,2]
[360783843,1747017050631,-158.924551,0.00019178,2]
[360783844,1747017050640,-246.178559,0.00019178,2]
[360783845,1747017050650,-413.64321622,0.00019189,2]
[360783846,1747017050659,-413.64321622,0.00019226,2]
[360783847,1747017050668,-7311.35370015,0.00019226,2]
[360783848,1747017050677,-151.0,0.00019229,2]
[360783849,1747017050686,-427.16,0.000193,2]
[360783850,1747017050695,-151.373288,0.000193,2]
[360783851,1747017050705,-2098654.37554206,0.00019326,2]
[360783852,1747017050714,-151.744934,0.00019326,2]
[360783853,1747017050724,-151.0,0.00019326,2]
[360783854,1747017050733,-151.0,0.00019326,2]
[360783855,1747017050743,-151.0,0.00019326,2]
[360783856,1747017050752,-158.924551,0.00019326,2]
[360783857,1747017050762,-158.924551,0.00019326,2]
[360783858,1747017050771,-840.014361,0.00019326,2]
[360783859,1747017050780,-151.0,0.00019326,2]
[360783860,1747017050789,-840.014361,0.00019326,2]
[360783861,1747017050799,-151.0,0.00019326,2]
[360783862,1747017050810,-151.0,0.00019326,2]
[360783863,1747017050819,-4274.32216098,0.00019329,2]
[360783864,1747017050828,-7444.02424489,0.00019351,2]
[360783865,1747017051319,-514.38398676,0.00019178,2]
[360783866,1747017051329,-400.0,0.00019178,2]
[360783867,1747017051338,-676.35601301,0.00019351,2]
[360783869,1747017063304,176.0,0.00016438,3]
[360783873,1747017112707,1016.39831773,0.00017944,2]
[360783876,1747017365918,570.435147,0.00013699,2]
[360783880,1747017378472,178.0,0.00016438,3]
[360783882,1747017394768,300.0,0.00018,2]
[360783883,1747017561919,-1768.1865451,0.00018031,2]
[360783884,1747017561942,-300.0,0.00018174,2]
[360783885,1747017562140,-500.0,0.00018175,2]
[360783886,1747017562164,-500.0,0.00018175,2]
[360783887,1747017562185,-500.0,0.00018175,2]
[360783888,1747017562213,-500.0,0.00018175,2]
[360783889,1747017562235,-500.0,0.00018175,2]
[360783890,1747017562256,-188.93469548,0.00018175,2]
[360783891,1747017562279,-500.0,0.00018175,2]
[360783892,1747017562306,-500.0,0.00018175,2]
[360783893,1747017562327,-500.0,0.00018175,2]
[360783894,1747017562348,-553.91409985,0.00018175,2]
[360783895,1747017562369,-500.0,0.00018175,2]
[360783896,1747017562399,-500.0,0.00018175,2]
[360783897,1747017562421,-500.0,0.00018175,2]
[360783898,1747017562443,-114.96465957,0.00018175,2]
[360783899,1747017605984,3747.527,0.00018,2]
[360783900,1747017674131,428.5531021,0.00017574,2]
[360783902,1747017750712,474.2125277,0.00017589,2]
[360783906,1747017863819,874.8111554,0.00017301,2]
[360783907,1747017870228,2224.20228791,0.00018,2]
[360783909,1747017919025,179.940566,0.00017307,2]
[360783919,1747018052094,-194.0,0.00018082,3]
[360783920,1747018052115,-54.54339731,0.00018171,2]
[360783922,1747018068028,799.69,0.00018,2]
[360783934,1747018135349,1219.5260612,0.00017215,2]
[360784025,1747018232357,-300.0,0.00018169,2]
[360784026,1747018232368,-175.4618623,0.00018169,2]
[360784027,1747018232380,-124.5381377,0.00018169,2]
[360784028,1747018232389,-300.0,0.00018169,2]
[360784029,1747018232398,-1200.0,0.00018169,2]
[360784030,1747018232407,-300.0,0.00018169,2]
[360784031,1747018232417,-1434.4157948,0.0001817,2]
[360784061,1747018238177,-4251.85359413,0.0001817,2]
[360784062,1747018238232,-702.53615547,0.0001817,2]
[360784063,1747018238241,-500.0,0.0001817,2]
[360784064,1747018238251,-500.0,0.0001817,2]
[360784065,1747018238260,-500.0,0.0001817,2]
[360784066,1747018238269,-500.0,0.0001817,2]
[360784067,1747018238278,-500.0,0.0001817,2]
[360784068,1747018238288,-500.0,0.0001817,2]
[360784069,1747018238298,-500.0,0.0001817,2]
[360784070,1747018238307,-538.70077937,0.0001817,2]
[360784071,1747018238317,-500.0,0.0001817,2]
[360784072,1747018238337,-500.0,0.0001817,2]
[360784073,1747018238347,-500.0,0.0001817,2]
[360784074,1747018238356,-500.0,0.0001817,2]
[360784075,1747018238365,-500.0,0.0001817,2]
[360784076,1747018238375,-500.0,0.0001817,2]
[360784077,1747018238384,-500.0,0.0001817,2]
[360784078,1747018238394,-500.0,0.0001817,2]
[360784079,1747018238403,-500.0,0.0001817,2]
[360784080,1747018238412,-500.0,0.0001817,2]
[360784081,1747018238421,-500.0,0.0001817,2]
[360784082,1747018238431,-500.0,0.0001817,2]
[360784083,1747018238440,-500.0,0.0001817,2]
[360784084,1747018238449,-500.0,0.0001817,2]
[360784085,1747018238458,-500.0,0.0001817,2]
[360784086,1747018238468,-500.0,0.0001817,2]
[360784087,1747018238477,-236.40569893,0.0001817,2]
[360784088,1747018238487,-500.0,0.0001817,2]
[360784089,1747018238496,-500.0,0.0001817,2]
[360784090,1747018238505,-500.0,0.0001817,2]
[360784091,1747018238515,-500.0,0.0001817,2]
[360784092,1747018238527,-500.0,0.0001817,2]
[360784093,1747018238536,-500.0,0.0001817,2]
[360784094,1747018238547,-500.0,0.0001817,2]
[360784095,1747018238556,-500.0,0.0001817,2]
[360784096,1747018238567,-500.0,0.0001817,2]
[360784097,1747018238576,-500.0,0.0001817,2]
[360784098,1747018238586,-500.0,0.0001817,2]
[360784099,1747018238596,-500.0,0.0001817,2]
[360784100,1747018238606,-500.0,0.0001817,2]
[360784101,1747018238616,-500.0,0.0001817,2]
[360784102,1747018238625,-500.0,0.0001817,2]
[360784103,1747018238635,-500.0,0.0001817,2]
[360784104,1747018238644,-500.0,0.0001817,2]
[360784105,1747018238654,-500.0,0.0001817,2]
[360784106,1747018238664,-500.0,0.0001817,2]
[360784107,1747018238673,-500.0,0.0001817,2]
[360784108,1747018238683,-500.0,0.0001817,2]
[360784109,1747018238693,-500.0,0.0001817,2]
[360784110,1747018238703,-401.44653763,0.0001817,2]
[360784111,1747018238712,-500.0,0.0001817,2]
[360784112,1747018238721,-500.0,0.0001817,2]
[360784113,1747018238731,-500.0,0.0001817,2]
[360784114,1747018238740,-500.0,0.0001817,2]
[360784115,1747018238750,-500.0,0.0001817,2]
[360784116,1747018238760,-500.0,0.0001817,2]
[360784117,1747018238770,-500.0,0.0001817,2]
[360784118,1747018238779,-500.0,0.0001817,2]
[360784119,1747018238789,-500.0,0.0001817,2]
[360784120,1747018238799,-500.0,0.0001817,2]
[360784121,1747018238808,-500.0,0.0001817,2]
[360784122,1747018238818,-500.0,0.0001817,2]
[360784123,1747018238828,-500.0,0.0001817,2]
[360784124,1747018238838,-500.0,0.0001817,2]
[360784125,1747018238847,-500.0,0.0001817,2]
[360784126,1747018238858,-500.0,0.0001817,2]
[360784127,1747018238868,-500.0,0.0001817,2]
[360784128,1747018238877,-500.0,0.0001817,2]
[360784129,1747018238887,-500.0,0.0001817,2]
[360784130,1747018238897,-500.0,0.0001817,2]
[360784131,1747018238908,-500.0,0.0001817,2]
[360784132,1747018238918,-500.0,0.0001817,2]
[360784133,1747018238928,-500.0,0.0001817,2]
[360784134,1747018238938,-500.0,0.0001817,2]
[360784135,1747018238951,-500.0,0.0001817,2]
[360784136,1747018238961,-500.0,0.0001817,2]
[360784137,1747018238971,-500.0,0.0001817,2]
[360784138,1747018238980,-500.0,0.0001817,2]
[360784139,1747018238990,-500.0,0.0001817,2]
[360784140,1747018239000,-500.0,0.0001817,2]
[360784141,1747018239010,-500.0,0.0001817,2]
[360784142,1747018239019,-500.0,0.0001817,2]
[360784143,1747018239029,-500.0,0.0001817,2]
[360784144,1747018239040,-500.0,0.0001817,2]
[360784145,1747018239050,-500.0,0.0001817,2]
[360784146,1747018239059,-500.0,0.0001817,2]
[360784147,1747018239069,-500.0,0.0001817,2]
[360784148,1747018239079,-601.21889116,0.0001817,2]
[360784149,1747018239089,-500.0,0.0001817,2]
[360784150,1747018239098,-500.0,0.0001817,2]
[360784151,1747018239108,-500.0,0.0001817,2]
[360784152,1747018239118,-500.0,0.0001817,2]
[360784153,1747018239129,-500.0,0.0001817,2]
[360784154,1747018239139,-500.0,0.0001817,2]
[360784155,1747018239148,-500.0,0.0001817,2]
[360784156,1747018239158,-500.0,0.0001817,2]
[360784157,1747018239168,-500.0,0.0001817,2]
[360784158,1747018239178,-500.0,0.0001817,2]
[360784159,1747018239188,-500.0,0.0001817,2]
[360784160,1747018239198,-500.0,0.0001817,2]
[360784161,1747018239208,-167.42572308,0.0001817,2]
[360784162,1747018239218,-500.0,0.0001817,2]
[360784163,1747018239228,-361.40431586,0.0001817,2]
[360784164,1747018239238,-500.0,0.0001817,2]
[360784165,1747018239247,-160.0,0.00018175,2]
[360784166,1747018239257,-2108.46935843,0.00018176,2]
[360784412,1747018392321,658.2174146,0.00017742,2]
[360784416,1747018419956,10000.0,0.00017764,2]
[360784422,1747018465955,9980.0,0.00018,2]
[360784424,1747018476450,621.325007,0.00013699,2]
[360784430,1747018815176,215.0,0.00018,2]
[360784431,1747018831652,215.13861124,0.00018,2]
[360784434,1747018887263,24900.0,0.00017786,2]
[360784451,1747019039576,500.0,0.00018,2]
[360784462,1747019106633,1838.89380689,0.00017969,2]
[360784467,1747019158740,264.14257463,0.00017969,2]
[360784474,1747019242090,-301.03303318,0.00018069,2]
[360784496,1747019436741,-698.96696682,0.00018069,2]
[360784497,1747019436751,-155.0,0.00018173,2]
[360784498,1747019436760,-161.0,0.00018249,2]
[360784499,1747019436769,-300.0,0.00018249,2]
[360784500,1747019436778,-300.0,0.00018249,2]
[360784501,1747019436787,-1200.0,0.00018249,2]
[360784502,1747019436796,-300.0,0.00018249,2]
[360784503,1747019436806,-500.0,0.0001825,2]
[360784504,1747019436815,-637.37841099,0.0001825,2]
[360784505,1747019436826,-500.0,0.0001825,2]
[360784506,1747019436835,-500.0,0.0001825,2]
[360784507,1747019436853,-500.0,0.0001825,2]
[360784508,1747019436865,-325.662983,0.0001825,2]
[360784509,1747019436878,-174.337017,0.0001825,2]
[360784510,1747019436888,-155.71628196,0.0001825,2]
[360784511,1747019436898,-151.79239127,0.0001825,2]
[360784512,1747019436914,-385.83333708,0.0001825,2]
[360784513,1747019436927,-23.42522579,0.0001825,2]
[360784514,1747019436939,-500.0,0.0001825,2]
[360784515,1747019436949,-82.02477421,0.0001825,2]
[360784610,1747019674950,606.537254,0.00013699,2]
[360784620,1747019964145,-153.76033597,0.00018024,2]
[360784621,1747019964170,-300.0,0.00018119,2]
[360784622,1747019964205,-500.0,0.0001812,2]
[360784623,1747019964232,-500.0,0.0001812,2]
[360784624,1747019964260,-500.0,0.0001812,2]
[360784625,1747019964286,-182.28279862,0.0001812,2]
[360784626,1747019964314,-500.0,0.0001812,2]
[360784627,1747019964340,-500.0,0.0001812,2]
[360784628,1747019964369,-500.0,0.0001812,2]
[360784629,1747019964393,-500.0,0.0001812,2]
[360784630,1747019964418,-500.0,0.0001812,2]
[360784631,1747019964443,-500.0,0.0001812,2]
[360784632,1747019964469,-500.0,0.0001812,2]
[360784633,1747019964495,-500.0,0.0001812,2]
[360784634,1747019964520,-500.0,0.0001812,2]
[360784635,1747019964548,-500.0,0.0001812,2]
[360784636,1747019964573,-500.0,0.0001812,2]
[360784637,1747019964595,-9614.95686541,0.00018121,2]
[360784646,1747020181779,-800.0,0.00018018,2]
[360784660,1747020365509,160.0,0.00022,120]
[360784662,1747020373347,24900.0,0.0001712,2]
[360784665,1747020385350,160.0,0.00022,120]
[360784668,1747020403545,177.0,0.00022,120]
[360784674,1747020452751,2839.6487749,0.00017118,2]
[360784681,1747020496754,410.87470458,0.00010618,2]
[360784684,1747020524038,500.0000002,0.00015748,3]
[360784689,1747020560447,10000.0,0.00017117,2]
[360784751,1747020632541,-4837.97443292,0.00018018,2]
[360784753,1747020632596,-225.12945099,0.00018018,2]
[360784754,1747020632606,-200.0,0.00018018,2]
[360784755,1747020632615,-151.47475377,0.00018106,2]
[360784756,1747020632625,-300.0,0.00018114,2]
[360784757,1747020632634,-1200.0,0.00018114,2]
[360784758,1747020632644,-300.0,0.00018114,2]
[360784759,1747020632654,-500.0,0.00018115,2]
[360784760,1747020632663,-500.0,0.00018115,2]
[360784761,1747020632673,-500.0,0.00018115,2]
[360784762,1747020632681,-500.0,0.00018115,2]
[360784763,1747020632690,-448.41169117,0.00018115,2]
[360784801,1747020638556,-500.0,0.00018113,2]
[360784803,1747020638566,-240.52300431,0.00018113,2]
[360784805,1747020638576,-500.0,0.00018113,2]
[360784807,1747020638586,-500.0,0.00018113,2]
[360784809,1747020638596,-500.0,0.00018113,2]
[360784811,1747020638605,-500.0,0.00018113,2]
[360784813,1747020638615,-500.0,0.00018113,2]
[360784815,1747020638624,-500.0,0.00018113,2]
[360784817,1747020638634,-500.0,0.00018113,2]
[360784819,1747020638644,-353.90189703,0.00018113,2]
[360784821,1747020638656,-146.09810297,0.00018113,2]
[360784823,1747020638665,-500.0,0.00018113,2]
[360784825,1747020638675,-500.0,0.00018113,2]
[360784827,1747020638684,-619.10366014,0.00018113,2]
[360784829,1747020638693,-500.0,0.00018115,2]
[360784831,1747020638702,-500.0,0.00018115,2]
[360784833,1747020638714,-500.0,0.00018115,2]
[360784835,1747020638723,-500.0,0.00018115,2]
[360784837,1747020638732,-500.0,0.00018115,2]
[360784839,1747020638742,-500.0,0.00018115,2]
[360784841,1747020638751,-350.0,0.00018115,2]
[360784843,1747020638761,-500.0,0.00018115,2]
[360784845,1747020638770,-500.0,0.00018115,2]
[360784847,1747020638779,-500.0,0.00018115,2]
[360784848,1747020638788,-500.0,0.00018115,2]
[360784850,1747020638797,-500.0,0.00018115,2]
[360784852,1747020638806,-500.0,0.00018115,2]
[360784854,1747020638816,-500.0,0.00018115,2]
[360784856,1747020638826,-177.52309393,0.00018115,2]
[360784858,1747020638836,-500.0,0.00018115,2]
[360784860,1747020638845,-572.45652959,0.00018115,2]
[360784862,1747020638855,-500.0,0.00018115,2]
[360784864,1747020638864,-779.87509289,0.00018116,2]
[360784866,1747020638876,-12122.70210198,0.00018116,2]
[360784869,1747020638892,-10180.40095431,0.00018116,2]
[360784871,1747020638901,-2003.05,0.0001812,2]
[360784873,1747020638910,-505.4262855,0.000182,2]
[360784874,1747020638919,-500.0,0.000182,2]
[360784876,1747020638928,-452.3186068,0.000182,2]
[360784877,1747020638937,-500.0,0.000182,2]
[360784878,1747020638947,-502.95722511,0.000182,2]
[360784879,1747020638956,-500.0,0.000182,2]
[360784881,1747020638966,-500.0,0.000182,2]
[360784882,1747020638976,-500.0,0.000182,2]
[360784883,1747020638985,-195.36608431,0.000182,2]
[360784884,1747020638994,-500.0,0.000182,2]
[360784885,1747020639003,-500.0,0.000182,2]
[360784886,1747020639013,-500.0,0.000182,2]
[360784887,1747020639022,-207.4,0.00018203,2]
[360784888,1747020639032,-4490.76639909,0.00018356,2]
[360784889,1747020639041,-500.0,0.0001885,2]
[360784890,1747020639050,-2871.76419106,0.000189,2]
[360784891,1747020639059,-21261.30965463,0.00019,2]
[360784939,1747020645354,2000.0,0.00022,120]
[360784941,1747020646103,2000.0,0.00022,120]
[360784946,1747020646380,2000.0,0.00022,120]
[360784947,1747020646697,2000.0,0.00022,120]
[360784949,1747020646871,-500.0,0.00018113,2]
[360784950,1747020646881,-568.22827986,0.00018113,2]
[360784951,1747020646891,-545.70766408,0.00018113,2]
[360784952,1747020646901,-500.0,0.00018113,2]
[360784953,1747020646910,-500.0,0.00018113,2]
[360784954,1747020646919,-500.0,0.00018113,2]
[360784955,1747020646928,-500.0,0.00018113,2]
[360784956,1747020646938,-500.0,0.00018113,2]
[360784957,1747020646947,-5802.92668745,0.00019,2]
[360784958,1747020647001,2000.0,0.00022,120]
[360784959,1747020647305,2000.0,0.00022,120]
[360784966,1747020647602,2000.0,0.00022,120]
[360784967,1747020647941,2000.0,0.00022,120]
[360784968,1747020648239,2000.0,0.00022,120]
[360784969,1747020648519,2000.0,0.00022,120]
[360784975,1747020760346,-500.0,0.00018113,2]
[360784976,1747020760371,-500.0,0.00018113,2]
[360784977,1747020760393,-500.0,0.00018113,2]
[360784978,1747020760416,-500.0,0.00018113,2]
[360784979,1747020760448,-500.0,0.00018113,2]
[360784980,1747020760476,-229.80314221,0.00018113,2]
[360784981,1747020760499,-300.0,0.00018199,2]
[360784982,1747020760520,-500.0,0.000182,2]
[360784983,1747020760541,-500.0,0.000182,2]
[360784984,1747020760561,-358.53877274,0.000182,2]
[360784985,1747020760582,-171.65808505,0.000182,2]
[360784991,1747020937268,576.210391,0.00013699,2]
[360784994,1747021011318,196.4464863,0.00017986,2]
[360784998,1747021091471,-1465.0,0.0001813,2]
[360785013,1747021331580,1000.0,0.00018,2]
[360785014,1747021340650,1285.0,0.00018,2]
[360785018,1747021480694,-776.4384937,0.00018118,2]
[360785019,1747021480716,-23.5615063,0.0001813,2]
[360785028,1747021552381,4877.11979077,0.00017966,2]
[360785034,1747021614224,-300.0,0.00017965,2]
[360785035,1747021614245,-500.0,0.00017965,2]
[360785036,1747021614266,-500.0,0.00017965,2]
[360785037,1747021614285,-500.0,0.00017965,2]
[360785038,1747021614306,-500.0,0.00017965,2]
[360785039,1747021614326,-308.67953029,0.00017965,2]
[360785040,1747021614348,-500.0,0.00017965,2]
[360785041,1747021614368,-500.0,0.00017965,2]
[360785042,1747021614391,-500.0,0.00017965,2]
[360785043,1747021614413,-500.0,0.00017965,2]
[360785044,1747021614435,-500.0,0.00017965,2]